[Event "ETCC Open 2023"]
[Site "Budva"]
[Date "2023.11.12"]
[Round "2.17"]
[White "Martirosyan, Haik M."]
[Black "Saric, Ivan"]
[Result "0-1"]
[ECO "D35"]
[WhiteElo "2708"]
[BlackElo "2659"]
[Annotator "TA"]
[PlyCount "72"]
[EventDate "2023.11.10"]
[EventType "team-tourn"]
[EventCountry "MNE"]
[SourceTitle "playchess.com"]
[Source "ChessBase"]
[SourceQuality "1"]
[WhiteTeam "Armenia"]
[BlackTeam "Croatia"]
[WhiteTeamCountry "ARM"]
[BlackTeamCountry "CRO"]
[TimeControl "40/5400+30:1800+30"]

{[%evp 9,72,17,31,29,8,25,37,17,27,33,47,50,41,51,61,48,40,32,54,6,19,0,0,0,0,0,64,40,66,72,57,0,0,-55,0,-198,-190,-340,-339,-356,-318,-352,-143,-180,-187,-158,-138,-497,-479,-807,-841,-817,-672,-777,-760,-815,-787,-1424,-1426,-1364,-1332,-29982,-29983,-29982,-29982]} 1. d4 {[%emt 0:00:05]} Nf6 {[%emt 0:00:04]} 2. c4 {[%emt 0:00:12]} e6 {[%emt 0:00:05]} 3. Nf3 {[%emt 0:00:11]} d5 {[%emt 0:00:05]} 4. Nc3 {[%emt 0:00:51]} Nbd7 {[%emt 0:00:58]} 5. cxd5 {[%emt 0:01:45]} exd5 {[%emt 0:00:04]} 6. Qc2 {[%emt 0:00:02] D35: Queen's Gambit Declined: Exchange Variation.} c6 {[%emt 0:01:01]} 7. Bg5 {[%emt 0:00:14] 7.Bg5 scores better than 7.Bf4.} h6 {[%emt 0:00:17]} 8. Bh4 {[%emt 0:00:06] White is slightly better.} g5 {[%emt 0:02:10]} 9. Bg3 {[%emt 0:00:12]} Nh5 {[%emt 0:00:02]} 10. O-O-O {[%emt 0:11:57]} Nxg3 {[%emt 0:00:23]} 11. hxg3 {[%emt 0:00:01]} g4 {[%emt 0:00:18] [#]} 12. Nd2 $146 {[%emt 0:11:38]} ({Predecessor:} 12. Nh4 Nb6 13. e4 Be6 14. e5 Nc4 15. Bxc4 dxc4 16. Nf5 Qa5 17. Kb1 O-O-O 18. Ne3 {1-0 Kramnik,V (2779)-L'Ami,E (2639) Douglas IoM op 2018 (6)}) 12... Bg7 {[%emt 0:03:22]} 13. e3 {[%emt 0:07:54][%cal Be2e3,Be3e4,Be4e5][%mdl 32]} Qf6 {[%emt 0:14:28]} 14. f4 {[%emt 0:07:33]} (14. Nb3 $14 {is more appropriate.}) 14... O-O {[%emt 0:02:58]} (14... Nb6 $5) 15. Bd3 {[%emt 0:03:15]} (15. e4 $5) 15... b5 {[%emt 0:02:38]} 16. Kb1 {[%emt 0:03:04]} Nb6 $1 {[%emt 0:02:28]} 17. e4 {[%emt 0:05:12]} Qxd4 {[%emt 0:06:46]} (17... dxe4 $1 $11 18. Ndxe4 (18. Bxe4 Rd8 $11) 18... Qe7) 18. e5 $14 {[%emt 0:00:09] Bh7+ is the strong threat.} Na4 {[%emt 0:16:57]} 19. Nxa4 {[%emt 0:05:08]} bxa4 {[%emt 0:03:38] [#]} 20. Nf3 {[%emt 0:03:14]} Qb6 $1 $11 {[%emt 0:02:16]} 21. Bh7+ {[%emt 0:03:08]} Kh8 {[%emt 0:00:04]} 22. Ng5 {[%emt 0:00:04] [#]} Rb8 $1 $19 {[%emt 0:04:20]} 23. Rd2 {[%emt 0:01:27] [#]} (23. Bd3 $142 f5 24. exf6 Rxf6 25. Rde1) 23... f6 $1 {[%emt 0:01:14]} (23... hxg5 $2 24. Bg8+ Kxg8 25. Qh7#) 24. exf6 {[%emt 0:11:36]} Rxf6 {[%emt 0:00:31]} 25. Re2 {[%emt 0:01:37]} Rf8 {[%emt 0:06:20] Against Re8} (25... hxg5 26. Re8+ Rf8 27. Rxf8+ Bxf8 28. Bg8+ Kg7 29. Qh7+ Kf6 30. Qf7#) (25... Ba6 $19 {[%cal Oa6e2] is more deadly.} 26. Re7 Qd4) 26. Bg6 {[%emt 0:05:06]} a3 {[%emt 0:10:25]} 27. b3 {[%emt 0:00:39]} (27. Nf7+ $2 Rxf7 28. Qb3 Qxb3 29. axb3 Rf8 $19) 27... Qd4 {[%emt 0:01:07][%csl Gg7][%cal Rd4a1] Chess con chili.} 28. Re5 $2 {[%emt 0:02:28][%mdl 8192] Loses the game.} (28. Kc1 $17 {was the crucial defense.}) 28... Rb7 {[%emt 0:04:26]} (28... Bxe5 29. Rxh6+ Kg7 30. Rh7+ Kg8 31. Bf7+ (31. fxe5 $2 Rf1+) 31... Rxf7 32. Qg6+ Rg7 33. Qe8#) 29. Bd3 {[%emt 0:06:43]} (29. Rd1 $142 Qb2+ 30. Qxb2 axb2 31. Nh7 Bxe5 32. Nxf8) 29... a5 {[%emt 0:02:38]} 30. Kc1 {[%emt 0:04:02]} Qa1+ {[%emt 0:04:06]} (30... Bxe5 31. Rxh6+ $11) 31. Qb1 {[%emt 0:00:00]} Bxe5 {[%emt 0:01:57]} 32. Rxh6+ {[%emt 0:00:25]} Kg8 {[%emt 0:00:04] Strongly threatening ...Qc3+.} 33. fxe5 {[%emt 0:00:35]} Qc3+ {[%emt 0:02:44]} ({Stronger than} 33... Qxe5 34. Bh7+ Kh8 35. Bf5+ Kg7 36. Rg6+ Kh8 37. Rh6+ Kg8 38. Bh7+ Kh8 39. Bf5+ $11) 34. Kd1 {[%emt 0:01:52]} Rf2 {[%emt 0:00:41][%csl Gf2][%cal Rc3d2]} ({Weaker is} 34... Qxe5 35. Bh7+ Kh8 36. Bd3+ Kg7 37. Rg6+ Kh8 38. Rh6+ Kg8 39. Bh7+ Kh8 40. Bd3+ $11) 35. Rg6+ {[%emt 0:03:54]} Rg7 {[%emt 0:00:42][%csl Gf2][%cal Rc3d2]} 36. Be2 {[%emt 0:00:49]} Bf5 {[%emt 0:00:33] Artfully played by Saric.   Weighted Error Value: White=0.95/Black=0.23 (precise)} ({But not} 36... Rxg2 37. Rxg7+ Kf8 38. Rg8+ {[%mdl 64] Skewer, Decoy} Kxg8 39. Qh7+ Kf8 40. Qf7#) 0-1

[Event "ETCC Open 2023"]
[Site "Budva"]
[Date "2023.11.12"]
[Round "2.18"]
[White "Brkic, Ante"]
[Black "Sargissian, Gabriel"]
[Result "1/2-1/2"]
[ECO "C84"]
[WhiteElo "2622"]
[BlackElo "2686"]
[Annotator "TA"]
[PlyCount "80"]
[EventDate "2023.11.10"]
[EventType "team-tourn"]
[EventCountry "MNE"]
[SourceTitle "playchess.com"]
[Source "ChessBase"]
[SourceQuality "1"]
[WhiteTeam "Croatia"]
[BlackTeam "Armenia"]
[WhiteTeamCountry "CRO"]
[BlackTeamCountry "ARM"]
[TimeControl "40/5400+30:1800+30"]

{[%evp 15,80,22,13,12,20,8,0,0,15,0,12,-12,-13,-8,0,-16,0,0,0,0,8,-12,0,0,0,0,0,0,0,-14,0,0,9,-17,-14,-19,-14,-29,-29,-22,-31,-26,-23,-47,-47,-54,-54,-54,-54,-54,-50,-50,-36,-36,-36,-43,-25,-25,-25,-25,-25,-25,-25,-25,-25,-27,0]} 1. e4 {[%emt 0:00:02]} e5 {[%emt 0:00:48]} 2. Nf3 {[%emt 0:00:06]} Nc6 {[%emt 0:00:25]} 3. Bb5 {[%emt 0:00:04][%cal Bf1b5,Bb5a4,Ba4b3,Bb3a2][%mdl 32]} a6 {[%emt 0:00:40]} 4. Ba4 {[%emt 0:00:06]} Nf6 {[%emt 0:00:28]} 5. O-O {[%emt 0:00:07]} Be7 {[%emt 0:00:32]} 6. d3 {[%emt 0:00:23]} b5 {[%emt 0:01:17]} 7. Bb3 {[%emt 0:00:05]} d6 {[%emt 0:00:41]} 8. c3 {[%emt 0:00:37]} O-O {[%emt 0:01:40]} 9. h3 $1 {[%emt 0:00:22][%mdl 4] outshines the older 9.Re1. C84: Closed Ruy Lopez: Unusual White 6th moves.} Bb7 {[%emt 0:01:28]} 10. a4 {[%emt 0:00:33]} Na5 {[%emt 0:02:06]} 11. Ba2 {[%emt 0:00:13] The position is equal.} c5 {[%emt 0:01:19]} 12. Bg5 {[%emt 0:00:16] [#]} b4 $146 {[%emt 0:14:04]} ({Predecessor:} 12... h6 13. Bxf6 Bxf6 14. b4 cxb4 15. cxb4 Nc6 16. Bd5 Qd7 17. Qb3 Nd4 18. Nxd4 exd4 19. axb5 axb5 20. Nd2 Rfc8 21. Rxa8 {½-½ Tomashevsky,E (2694)-Esipenko,A (2683) RUS-ch 76th St Petersburg 2023 (10)}) 13. Bxf6 {[%emt 0:21:16]} Bxf6 {[%emt 0:00:10]} ({Resist} 13... gxf6 14. Nh4 $16) 14. Nbd2 {[%emt 0:00:03]} Rb8 {[%emt 0:24:45]} 15. Nc4 {[%emt 0:04:42]} Bc8 {[%emt 0:03:17]} 16. Nxa5 {[%emt 0:12:59]} Qxa5 {[%emt 0:00:08]} 17. Nd2 {[%emt 0:00:01]} Qc7 {[%emt 0:03:13]} 18. Nc4 {[%emt 0:10:30]} Bd8 {[%emt 0:12:33]} 19. Ne3 {[%emt 0:13:00]} Qe7 {[%emt 0:00:32]} 20. Bc4 {[%emt 0:02:14]} Qg5 {[%emt 0:02:05]} 21. Kh1 {[%emt 0:01:40]} a5 {[%emt 0:04:10]} 22. Bd5 {[%emt 0:06:01]} g6 {[%emt 0:00:25]} 23. Nc4 {[%emt 0:00:42]} Bc7 {[%emt 0:00:27]} 24. Qc1 {[%emt 0:12:14]} (24. f4 {looks sharper.} exf4 25. Qc1 Qh6 26. Rxf4 Be6 27. Rf2) 24... Qxc1 {[%emt 0:01:13]} 25. Raxc1 {[%emt 0:00:13]} Bd7 {[%emt 0:01:31]} 26. b3 {[%emt 0:00:19][%cal Od3d4]} bxc3 {[%emt 0:01:17]} 27. Rxc3 {[%emt 0:00:13]} Kg7 {[%emt 0:00:33]} 28. Ne3 {[%emt 0:02:26]} f5 {[%emt 0:01:09][%cal Bf7f5,Bf5f4][%mdl 32]} 29. f3 {[%emt 0:05:53]} f4 {[%emt 0:01:09]} 30. Nc4 {[%emt 0:01:36]} g5 {[%emt 0:00:47]} 31. Kg1 {[%emt 0:01:09]} h5 {[%emt 0:00:30]} 32. Kf2 {[%emt 0:00:01]} Rh8 {[%emt 0:04:03]} 33. Na3 {[%emt 0:01:49]} Rbe8 {[%emt 0:00:33][%cal Bb8e8,Be8e7,Be7g7][%mdl 32]} 34. Nb5 {[%emt 0:01:24]} Bb8 {[%emt 0:00:11]} 35. Rcc1 {[%emt 0:02:04]} Kf6 {[%emt 0:02:11][%cal Bg7f6,Bf6e7,Be7d8][%mdl 32]} 36. Rh1 {[%emt 0:00:15] Black has an edge.} Re7 {[%emt 0:01:40]} 37. Rh2 {[%emt 0:01:46]} Rg7 {[%emt 0:04:23]} 38. Ke2 {[%emt 0:00:25]} Ke7 {[%emt 0:01:00]} 39. Bc4 {[%emt 0:00:18]} Rh6 {[%emt 0:03:24]} 40. Nc3 {[%emt 0:01:05]} Kd8 {[%emt 0:04:12] Weighted Error Value: White=0.06 (flawless) /Black=0.04 (flawless)} 1/2-1/2

[Event "ETCC Open 2023"]
[Site "Budva"]
[Date "2023.11.12"]
[Round "2.19"]
[White "Melkumyan, Hrant"]
[Black "Martinovic, Sasa"]
[Result "1-0"]
[ECO "D02"]
[WhiteElo "2650"]
[BlackElo "2542"]
[Annotator "TA"]
[PlyCount "87"]
[EventDate "2023.11.10"]
[EventType "team-tourn"]
[EventCountry "MNE"]
[SourceTitle "playchess.com"]
[Source "ChessBase"]
[SourceQuality "1"]
[WhiteTeam "Armenia"]
[BlackTeam "Croatia"]
[WhiteTeamCountry "ARM"]
[BlackTeamCountry "CRO"]
[TimeControl "40/5400+30:1800+30"]

{[%evp 10,87,5,6,12,15,14,6,13,16,20,0,6,-4,68,6,31,9,11,-7,-9,0,-6,-40,-42,-43,0,-53,-12,-23,0,0,0,-39,-15,-75,-75,-77,-83,-80,-67,-97,-73,-147,-156,-156,-135,-176,-170,-147,-107,-189,-158,-155,-147,-191,-166,-148,-87,-156,-157,-159,-17,-57,0,0,808,0,0,0,0,0,0,0,116,137,277,280,685,658]} 1. d4 {[%emt 0:01:20]} d5 {[%emt 0:00:04]} 2. Bf4 {[%emt 0:00:12]} e6 {[%emt 0:01:34]} 3. e3 {[%emt 0:02:58]} Nf6 {[%emt 0:00:30]} 4. Nd2 {[%emt 0:05:28]} Bd6 {[%emt 0:01:26]} 5. Ngf3 {[%emt 0:07:50]} Bxf4 {[%emt 0:02:31]} 6. exf4 {[%emt 0:00:10]} Qd6 {[%emt 0:00:20] D02: 1 d4 d5 2 Nf3 sidelines, including 2...Nf6 3 g3 and 2...Nf6 3 Bf4.} 7. g3 $1 {[%emt 0:01:22]} b6 {[%emt 0:06:07]} 8. Bd3 $5 {[%emt 0:10:08][%mdl 4] [#] A promising side line.} Ba6 $146 {[%emt 0:08:43] The position is equal.} ({Predecessor:} 8... c5 9. c3 Nc6 10. Qe2 O-O 11. O-O cxd4 12. Nxd4 Nxd4 13. cxd4 Bd7 14. Nf3 Rfc8 {½-½ Van Foreest,J (2671)-Djordjevic,V (2350) Chess.com Bullet op1 blitz 2020 (13)}) 9. Bxa6 {[%emt 0:01:30]} Nxa6 {[%emt 0:00:03]} 10. O-O {[%emt 0:00:14][%cal Of4f5]} (10. c4 $5 {[%cal Rd1a4]} O-O 11. O-O $11) 10... O-O {[%emt 0:06:54]} 11. Qe2 {[%emt 0:01:11] [#]} b5 {[%emt 0:08:15]} 12. Ne5 {[%emt 0:02:57]} (12. Qxb5 Rab8 13. Qa5 Rxb2 $11) (12. c3 $14) 12... Rab8 {[%emt 0:03:11]} 13. Ndf3 {[%emt 0:18:43]} c5 {[%emt 0:08:13]} 14. Rfd1 {[%emt 0:00:18]} c4 {[%emt 0:07:01]} 15. a3 {[%emt 0:02:23]} Nc7 {[%emt 0:01:35]} 16. b4 {[%emt 0:05:47]} Ne4 {[%emt 0:04:22]} 17. Qe1 {[%emt 0:00:52] Repels Nc3} f6 {[%emt 0:01:45]} 18. Ng4 {[%emt 0:00:13]} (18. Nd3 $1 $11) 18... h5 {[%emt 0:09:02][%cal Bh7h5,Bh5h4,Bh4h3,Bh3g2][%mdl 32]} 19. Ne3 {[%emt 0:00:54]} g5 {[%emt 0:00:27] Against Nh4} 20. Ng2 $1 {[%emt 0:09:00]} h4 $36 {[%emt 0:03:08][%mdl 2048] Black fights for an advantage.} 21. fxg5 {[%emt 0:16:26]} h3 {[%emt 0:00:19][%cal Of6g5]} (21... Nxg5 22. Ngxh4 Nxf3+ 23. Nxf3 $16) 22. gxf6 {[%emt 0:01:47]} (22. Ne3 $11) 22... hxg2 $17 {[%emt 0:01:01]} 23. Ne5 {[%emt 0:00:05]} Rxf6 {[%emt 0:07:31]} 24. f3 {[%emt 0:00:07] Hoping for Qe3.} Ng5 {[%emt 0:02:54][%cal Od6e5] And now ...Qxe5! would win.} 25. Qe3 {[%emt 0:00:04]} Nf7 {[%emt 0:03:32]} 26. a4 {[%emt 0:00:01]} (26. Re1 $142) 26... Rf5 {[%emt 0:02:20][%cal Rf7e5]} (26... Qxb4 $6 27. Nd7 Qe7 28. Nxb8 $11) 27. Ng4 {[%emt 0:07:34]} Kg7 {[%emt 0:04:35]} 28. axb5 {[%emt 0:00:14]} Nxb5 {[%emt 0:00:23]} 29. f4 {[%emt 0:00:59]} c3 {[%emt 0:01:28]} (29... Qxb4 30. Qxe6 (30. Kxg2 $2 Qb2 $19) 30... Rh5 31. Ra6 $14 (31. Kxg2 Qd6 $17)) 30. Ra5 {[%emt 0:00:49]} (30. Kxg2 $17 {was called for.} Qb6 31. Ra5) 30... Rb6 {[%emt 0:00:59]} 31. Rb1 {[%emt 0:01:33]} Qc6 {[%emt 0:01:29]} 32. Qf2 {[%emt 0:01:50]} a6 {[%emt 0:01:52]} 33. Kxg2 {[%emt 0:00:14]} Nbd6 {[%emt 0:00:36]} (33... Nfd6 $142 {...Ne4 would be deadly.} 34. Ne5 Qb7) 34. Ne3 {[%emt 0:00:44]} (34. Qf3 $142) 34... Rf6 {[%emt 0:00:18]} 35. Qe2 {[%emt 0:00:57]} Ne4 {[%emt 0:00:57] Wards off Rc5} ({Black should play} 35... Rg6 $17 {...Qb7 is the strong threat.} 36. Rba1 Nb5) 36. Rba1 $11 {[%emt 0:00:06]} Rxb4 {[%emt 0:00:59]} (36... Qe8 $1 $15) 37. Rxa6 {[%emt 0:00:01]} Qb5 {[%emt 0:00:25][%mdl 8192]} (37... Rb6 $11) 38. Qd1 $2 {[%emt 0:00:49]} ({White must play} 38. Qg4+ $18 Kh7 39. Ra8 (39. Rxe6 Rxe6 40. Nf5 Neg5 $11) (39. Ra7 Rxd4 40. Qh5+ Kg7 $11)) 38... Rxd4 {[%emt 0:01:50][%mdl 64] Deflection} 39. Qxd4 {[%emt 0:01:39] Threatens to win with Qd1.} Qe2+ {[%emt 0:00:05]} 40. Kg1 $1 {[%emt 0:00:28] aiming for Nf1.} (40. Kh1 $2 e5 41. Qa7 (41. Qxd5 Qf3+ 42. Ng2 Nf2+ {[%mdl 64] Discovered Attack} 43. Kg1 Nh3+ 44. Kh1 Qxd5 45. R6a4 exf4 46. Rf1 fxg3 47. Rxf6 Qd1+) (41. fxe5 Nf2+ 42. Kg2 Qf3+ 43. Kf1 Ng4+ {[%mdl 64] Discovered Attack, Double Attack} 44. Ke1 Qf2+ 45. Kd1 Nxe3+) 41... Nf2+ 42. Kg1 Rxa6 43. Qxa6 (43. Nf5+ $2 Kh8 $19) 43... Qxe3 $19) 40... Qf2+ {[%emt 0:01:10]} 41. Kh1 {[%emt 0:02:36] Strongly threatening Rf1.} Kh7 {[%emt 0:07:53] [#]} (41... Qf3+ $11 {remains equal.} 42. Ng2 Nf2+ 43. Kg1 Nh3+ 44. Kh1 Nf2+ 45. Kg1 Nh3+ 46. Kh1 Nf2+) 42. Qd3 $1 $16 {[%emt 0:02:23]} Ne5 {[%emt 0:09:40] [#] Repels Ng4} (42... Rg6 $16 {was necessary.}) 43. Ra7+ $1 $18 {[%emt 0:06:13]} (43. fxe5 Qf3+ 44. Kg1 (44. Ng2 Qxd3 45. cxd3 Nf2+ 46. Kg1 Nh3+ 47. Kh1 Nf2+ 48. Kg1 Nh3+ 49. Kh1 Nf2+ $11) 44... Qf2+ 45. Kh1 Qf3+ 46. Ng2 Qxd3 47. exf6 (47. cxd3 Nf2+ 48. Kg1 Nh3+ 49. Kh1 Nf2+ 50. Kg1 Nh3+ 51. Kh1 Nf2+ $11) 47... Qxc2 $11) 43... Kh6 $2 {[%emt 0:03:33]} (43... Kh8 44. Ra8+ (44. fxe5 $2 {gets mated.} Nxg3+ 45. hxg3 Rh6#) 44... Kg7 45. R1a7+ (45. fxe5 $2 Nxg3+ 46. hxg3 Rh6#) 45... Rf7 46. Rxf7+ (46. fxe5 Qf3+ 47. Kg1 Qf2+ 48. Kh1 Qf3+ 49. Kg1 Qf2+ 50. Kh1 $11) 46... Nxf7) 44. Qf1 {[%emt 0:00:47] A cool game by Melkumyan.   Weighted Error Value: White=0.36/Black=0.50} ({Not} 44. fxe5 Qf3+ 45. Kg1 Qf2+ 46. Kh1 Qf3+ 47. Ng2 (47. Kg1 Qf2+ 48. Kh1 $11) 47... Nf2+ 48. Kg1 Nxd3 49. exf6 Qf2+ 50. Kh1 Qxc2 $11) 1-0

[Event "ETCC Open 2023"]
[Site "Budva"]
[Date "2023.11.12"]
[Round "2.20"]
[White "Livaic, Leon"]
[Black "Sargsyan, Shant"]
[Result "1/2-1/2"]
[ECO "C77"]
[WhiteElo "2553"]
[BlackElo "2625"]
[Annotator "TA"]
[PlyCount "64"]
[EventDate "2023.11.10"]
[EventType "team-tourn"]
[EventCountry "MNE"]
[SourceTitle "playchess.com"]
[Source "ChessBase"]
[SourceQuality "1"]
[WhiteTeam "Croatia"]
[BlackTeam "Armenia"]
[WhiteTeamCountry "CRO"]
[BlackTeamCountry "ARM"]
[TimeControl "40/5400+30:1800+30"]

{[%evp 12,64,5,6,10,0,7,5,9,12,18,4,12,10,17,0,0,0,13,8,28,-23,-29,-27,-19,-11,-22,-26,-19,-35,-23,-20,-10,-50,0,0,0,0,0,0,0,0,0,0,0,0,0,0,0,-4,0,0,0,0,0]} 1. e4 {[%emt 0:00:08]} e5 {[%emt 0:01:30]} 2. Nf3 {[%emt 0:00:12]} Nc6 {[%emt 0:00:14]} 3. Bb5 {[%emt 0:00:15][%cal Bf1b5,Bb5a4,Ba4b3][%mdl 32]} a6 {[%emt 0:00:07]} 4. Ba4 {[%emt 0:00:08]} Nf6 {[%emt 0:00:09]} 5. d3 {[%emt 0:00:14]} b5 {[%emt 0:00:36]} 6. Bb3 {[%emt 0:00:06]} Bc5 {[%emt 0:00:05]} 7. Nc3 {[%emt 0:00:34] 7.c3 gains popularity.} h6 {[%emt 0:01:39] C77: Ruy Lopez: 3...a6 4 Ba4 Nf6, unusual lines.} 8. Nd5 {[%emt 0:04:13]} d6 {[%emt 0:00:11]} 9. c3 {[%emt 0:00:12]} Be6 {[%emt 0:00:19]} 10. Nxf6+ {[%emt 0:03:03]} Qxf6 {[%emt 0:00:37]} 11. O-O {[%emt 0:00:12]} Ne7 {[%emt 0:01:40]} 12. Be3 {[%emt 0:08:50] [#]} Bxb3 $146 {[%emt 0:11:30]} ({Predecessor:} 12... Bxe3 13. fxe3 O-O 14. h3 Qg6 15. Kh2 Bxb3 16. Qxb3 d5 17. g3 Qd6 18. exd5 Nxd5 {½-½ Montalvo,M-Mazzonna,R (1669) W-ch WS/O/1323 email 2021}) 13. axb3 {[%emt 0:01:57]} Bxe3 {[%emt 0:00:16]} 14. fxe3 {[%emt 0:00:05]} O-O {[%emt 0:01:20]} 15. b4 {[%emt 0:05:09]} Qe6 {[%emt 0:02:32]} 16. Nd2 {[%emt 0:01:54]} ({White should try} 16. d4) 16... c5 $11 {[%emt 0:04:31]} 17. bxc5 {[%emt 0:14:50]} dxc5 {[%emt 0:00:15]} 18. Qe2 {[%emt 0:01:22]} Rfd8 {[%emt 0:12:28]} 19. Nf3 {[%emt 0:00:07]} Ng6 {[%emt 0:02:49]} 20. Rfd1 {[%emt 0:12:17]} a5 {[%emt 0:04:21]} 21. d4 {[%emt 0:02:16]} c4 {[%emt 0:00:24]} (21... Qb6 {feels hotter.} 22. dxc5 Qxc5 23. Rxd8+ Rxd8 24. Rxa5 Nf4) 22. dxe5 {[%emt 0:02:07]} Nxe5 {[%emt 0:07:01]} (22... a4 $15) 23. Nxe5 {[%emt 0:01:35] The position is equal.} Qxe5 {[%emt 0:01:35]} 24. Rxa5 {[%emt 0:02:34][%mdl 64] [#] Deflection} Rxd1+ {[%emt 0:03:41]} 25. Qxd1 {[%emt 0:00:05]} Rxa5 {[%emt 0:00:29]} 26. Qd8+ {[%emt 0:00:04]} Kh7 {[%emt 0:00:03] ( -> ...Ra1+)} 27. Qxa5 {[%emt 0:00:06]} Qxe4 {[%emt 0:00:51]} 28. Qxb5 {[%emt 0:00:14]} Qxe3+ {[%emt 0:00:30] KQ-KQ} 29. Kf1 {[%emt 0:00:04]} Qf4+ {[%emt 0:00:48]} 30. Kg1 {[%emt 0:00:56]} f5 {[%emt 0:01:10]} 31. h3 {[%emt 0:00:56]} Qe3+ {[%emt 0:02:53]} 32. Kh2 {[%emt 0:00:21]} Qf4+ {[%emt 0:00:37] A rather calm draw.   Weighted Error Value: White=0.09 (flawless) /Black=0.06 (flawless)} 1/2-1/2

[Event "ETCC Open 2023"]
[Site "Budva"]
[Date "2023.11.12"]
[Round "2.21"]
[White "Rodshtein, Maxim"]
[Black "Anton Guijarro, David"]
[Result "1/2-1/2"]
[ECO "D02"]
[WhiteElo "2582"]
[BlackElo "2668"]
[Annotator "TA"]
[PlyCount "89"]
[EventDate "2023.11.10"]
[EventType "team-tourn"]
[EventCountry "MNE"]
[SourceTitle "playchess.com"]
[Source "ChessBase"]
[SourceQuality "1"]
[WhiteTeam "Israel"]
[BlackTeam "Spain"]
[WhiteTeamCountry "ISR"]
[BlackTeamCountry "ESP"]
[TimeControl "40/5400+30:1800+30"]

{[%evp 9,89,25,41,39,49,44,55,54,51,43,57,21,68,56,60,60,54,0,0,0,0,-13,0,0,35,35,30,33,10,17,41,28,5,0,-1,-7,50,47,81,79,81,68,70,33,41,43,59,53,102,54,80,64,63,75,81,62,50,0,0,0,0,0,0,0,0,0,0,0,0,0,0,0,0,0,0,0,0,0,0,0,0,0]} 1. Nf3 {[%emt 0:00:06][%cal Bg1f3,Bf3h4,Bh4g2,Bg2f4][%mdl 32]} d5 {[%emt 0:00:52]} 2. g3 {[%emt 0:00:19]} Nd7 {[%emt 0:01:06]} 3. d4 {[%emt 0:01:11]} Nb6 {[%emt 0:00:31]} 4. Nbd2 {[%emt 0:04:39]} Bf5 {[%emt 0:33:13]} 5. Nh4 {[%emt 0:01:34]} Bg4 {[%emt 0:01:03]} 6. h3 {[%emt 0:06:25][%cal Bh2h3,Bh3h4][%mdl 32] D02: 1 d4 d5 2 Nf3 sidelines, including 2...Nf6 3 g3 and 2...Nf6 3 Bf4.} Bh5 {[%emt 0:00:14]} 7. Ng2 {[%emt 0:01:25]} f6 {[%emt 0:07:01]} 8. Nf4 {[%emt 0:08:06] White is slightly better.} Bf7 {[%emt 0:00:06]} 9. Nd3 {[%emt 0:07:06] [#]} Qd6 $146 {[%emt 0:02:18]} ({Predecessor:} 9... e5 10. dxe5 c5 11. exf6 Nxf6 12. Bg2 Bd6 13. Nf3 Qe7 14. O-O O-O 15. Bf4 Bxf4 16. Nxf4 {½-½ Blohberger,F (2434)-Mosesov,D (2290) Zadar op-A 26th 2019 (7)}) 10. Nf3 {[%emt 0:09:01]} g5 {[%emt 0:03:30]} (10... Nd7 $11) 11. h4 {[%emt 0:08:25]} g4 {[%emt 0:01:20]} 12. Bf4 {[%emt 0:00:10]} Qc6 {[%emt 0:01:55]} 13. Nh2 {[%emt 0:04:23]} (13. Nd2 $14) 13... h5 $11 {[%emt 0:13:47]} 14. Bg2 {[%emt 0:01:28][%cal Oa2a4]} Bh6 {[%emt 0:00:38]} 15. Qd2 {[%emt 0:09:25][%cal Oa2a4]} Nc4 {[%emt 0:03:41]} 16. Qc3 {[%emt 0:01:04]} Qb6 {[%emt 0:00:48]} 17. b3 {[%emt 0:07:46]} Nd6 {[%emt 0:01:04]} 18. a4 {[%emt 0:02:19][%cal Ba2a4,Ba4a5][%mdl 32] Prevents Nb5.} Ne4 {[%emt 0:03:53]} 19. Bxe4 {[%emt 0:01:12]} ({Reject} 19. Qxc7 Bxf4 20. Qxf4 Qxd4 $17) 19... dxe4 {[%emt 0:00:08]} 20. a5 $1 {[%emt 0:02:05]} (20. Bxc7 $2 {perishes.} Rc8 21. Bxb6 Rxc3 $19) 20... Qb5 {[%emt 0:00:45]} 21. Nb2 {[%emt 0:05:44]} Bxf4 {[%emt 0:04:56]} 22. gxf4 {[%emt 0:00:05] [#]} e3 {[%emt 0:02:40]} 23. fxe3 $14 {[%emt 0:03:17]} Bd5 {[%emt 0:02:52]} 24. Rg1 {[%emt 0:00:11]} Nh6 {[%emt 0:00:48]} 25. Nf1 {[%emt 0:01:34]} Nf5 {[%emt 0:00:27]} 26. Ng3 {[%emt 0:01:03]} Nxg3 {[%emt 0:01:18]} 27. Rxg3 {[%emt 0:00:06]} Be4 {[%emt 0:01:45]} 28. Nd3 {[%emt 0:02:33]} Qf5 {[%emt 0:02:49]} (28... Qd5 $14 {was preferrable.}) 29. Qc5 {[%emt 0:06:16]} (29. Qxc7 $2 {too greedy.} Rc8 $19) ({White should try} 29. a6 $16) 29... Bxd3 {[%emt 0:01:45]} 30. exd3 {[%emt 0:00:30]} Qxc5 {[%emt 0:00:31]} 31. dxc5 {[%emt 0:00:04][%mdl 4096] Endgame KRR-KRR} e5 {[%emt 0:02:57]} 32. f5 {[%emt 0:01:33] White is more active.} Kd7 {[%emt 0:00:49]} 33. Ke2 {[%emt 0:01:07]} (33. b4 $14) 33... b6 $11 {[%emt 0:01:56] The position is equal.} 34. axb6 {[%emt 0:01:46]} axb6 {[%emt 0:00:06]} 35. Rxa8 {[%emt 0:00:15]} Rxa8 {[%emt 0:00:03]} 36. cxb6 {[%emt 0:00:04]} cxb6 {[%emt 0:00:04] KR-KR} 37. Rg1 {[%emt 0:00:07]} b5 {[%emt 0:00:59]} 38. e4 {[%emt 0:04:05]} b4 {[%emt 0:01:58]} 39. Ke3 {[%emt 0:00:14]} Kd6 {[%emt 0:01:04]} (39... Ra2 $5 {[%cal Ra2c2]}) 40. Rd1 {[%emt 0:00:44]} Rc8 {[%emt 0:01:01]} 41. Rd2 {[%emt 0:04:38]} Rc7 {[%emt 0:04:06]} 42. Rg2 {[%emt 0:11:19]} Rc8 {[%emt 0:17:10]} 43. Rd2 {[%emt 0:00:51]} Rc7 {[%emt 0:00:31]} 44. Rg2 {[%emt 0:00:11]} Rc8 {[%emt 0:01:56]} 45. Rd2 {[%emt 0:00:10] Weighted Error Value: White=0.09 (flawless) /Black=0.11 (very precise)} 1/2-1/2